bitfinex-derivatives/quotes_SOLF0:USTF0_20251026
["timestamp","ask_amount","ask_price","bid_price","bid_amount"]
[1761465562686,4.4589575,193.88,193.82,62.12]
[1761465562887,3.89098677,193.87,193.82,62.12]
[1761465563087,3.89098677,193.86,193.82,62.12]
[1761465563294,2.6,193.89,193.82,62.12]
[1761465563496,3.89097258,193.88,193.82,62.12]
[1761465563696,3.89097258,193.87,193.82,62.12]
[1761465563896,3.89097258,193.86,193.82,62.12]
[1761465564097,7.05882263,193.89,193.82,62.12]
[1761465564399,3.89094294,193.88,193.82,62.12]
[1761465564597,3.89094294,193.87,193.82,62.12]
[1761465564899,3.89094294,193.86,193.82,62.12]
[1761465565092,2.6,193.89,193.82,62.12]
[1761465565292,3.89091688,193.88,193.82,62.12]
[1761465565493,3.89091688,193.87,193.82,62.12]
[1761465565796,3.89091688,193.86,193.82,62.12]
[1761465565998,2.6,193.89,193.82,62.12]
[1761465566199,3.89089916,193.88,193.82,62.12]
[1761465566398,3.89089916,193.87,193.82,62.12]
[1761465566595,3.89089916,193.86,193.82,62.12]
[1761465566796,2.6,193.89,193.82,62.12]
[1761465566995,3.89088221,193.88,193.82,62.12]
[1761465567296,3.89088221,193.87,193.82,62.12]
[1761465567490,3.89088221,193.86,193.82,62.12]
[1761465567692,2.6,193.89,193.82,62.12]
[1761465567891,3.89086409,193.88,193.82,62.12]
[1761465568092,3.89086409,193.87,193.82,62.12]
[1761465568293,3.89086409,193.86,193.82,62.12]
[1761465568493,2.6,193.89,193.82,62.12]
[1761465568694,3.89084622,193.88,193.82,62.12]
[1761465568896,3.89084622,193.87,193.82,62.12]
[1761465569092,3.89084622,193.86,193.82,62.12]
[1761465569288,2.6,193.89,193.82,62.12]
[1761465569491,3.89082776,193.88,193.82,62.12]
[1761465569698,3.89082776,193.87,193.82,62.12]
[1761465569899,3.89082776,193.86,193.82,62.12]
[1761465570101,2.6,193.89,193.82,62.12]
[1761465570300,3.89046656,193.88,193.82,62.12]
[1761465570600,3.89046656,193.87,193.82,62.12]
[1761465570795,3.89046656,193.86,193.82,62.12]
[1761465570995,2.6,193.89,193.82,62.12]
[1761465571195,3.89022095,193.88,193.82,62.12]
[1761465571398,3.89022095,193.87,193.82,62.12]
[1761465571596,3.89022095,193.86,193.82,62.12]
[1761465571793,2.6,193.89,193.82,62.12]
[1761465571993,3.89020352,193.88,193.82,62.12]
[1761465572200,3.89020352,193.87,193.82,62.12]
[1761465572400,3.89020352,193.86,193.82,62.12]
[1761465572600,2.6,193.89,193.82,62.12]
[1761465572799,3.89018725,193.88,193.82,62.12]
[1761465572992,3.89018725,193.87,193.82,62.12]
[1761465573194,3.89018725,193.86,193.82,62.12]
[1761465573500,2.6,193.89,193.82,62.12]
[1761465573693,3.8901712,193.88,193.82,62.12]
[1761465573895,3.8901712,193.87,193.82,62.12]
[1761465574188,3.8901712,193.86,193.82,62.12]
[1761465574391,2.6,193.89,193.82,62.12]
[1761465574592,3.89015535,193.88,193.82,62.12]
[1761465574792,3.89015535,193.87,193.82,62.12]
[1761465574992,3.89015535,193.86,193.82,62.12]
[1761465575201,2.6,193.89,193.82,62.12]
[1761465575500,3.89001087,193.88,193.82,62.12]
[1761465575700,3.89001087,193.87,193.82,62.12]
[1761465575902,3.89001087,193.86,193.82,62.12]
[1761465576102,2.6,193.89,193.82,62.12]
[1761465576302,3.89001653,193.88,193.82,62.12]
[1761465576501,3.89001653,193.87,193.82,62.12]
[1761465576807,3.89001653,193.86,193.82,62.12]
[1761465577001,2.6,193.89,193.82,62.12]
[1761465577203,3.8900018,193.88,193.82,62.12]
[1761465577512,3.8900018,193.87,193.82,62.12]
[1761465577708,3.8900018,193.86,193.82,62.12]
[1761465577906,2.6,193.89,193.82,62.12]
[1761465578111,3.88997858,193.88,193.82,62.12]
[1761465578314,3.88997858,193.87,193.82,62.12]
[1761465578510,3.88997858,193.86,193.82,62.12]
[1761465578712,2.6,193.89,193.82,62.12]
[1761465578912,3.89011964,193.88,193.82,62.12]
[1761465579112,3.89011964,193.87,193.82,62.12]
[1761465579313,3.89011964,193.86,193.82,62.12]
[1761465579613,2.6,193.89,193.82,62.12]
[1761465579912,3.89028379,193.88,193.82,62.12]
[1761465580213,3.89028379,193.87,193.82,62.12]
[1761465580412,3.89028379,193.86,193.82,62.12]
[1761465580612,2.6,193.89,193.82,62.12]
[1761465580812,3.88164442,193.88,193.82,62.12]
[1761465581009,3.88164442,193.87,193.82,62.12]
[1761465581210,3.88164442,193.86,193.82,62.12]
[1761465581507,2.6,193.89,193.82,62.12]
[1761465581709,3.88186891,193.88,193.82,62.12]
[1761465581915,3.88186891,193.87,193.82,62.12]
[1761465582107,3.88186891,193.86,193.82,62.12]
[1761465582401,2.6,193.89,193.82,62.12]
[1761465582605,3.88213705,193.88,193.82,62.12]
[1761465582810,3.88213705,193.87,193.82,62.12]
[1761465583010,3.88213705,193.86,193.82,62.12]
[1761465583315,2.6,193.89,193.82,62.12]
[1761465583517,3.88246742,193.88,193.82,62.12]
[1761465583713,3.88246742,193.87,193.82,62.12]
[1761465583915,3.88246742,193.86,193.82,62.12]
[1761465584209,2.6,193.89,193.82,62.12]
[1761465584413,2.63,193.87,193.83,62.1]
[1761465584613,3.88290197,193.86,193.83,62.1]
[1761465584811,3.88290197,193.85,193.83,62.1]
[1761465585115,2.63,193.87,193.83,62.1]
[1761465585315,3.8826129,193.86,193.83,62.1]
[1761465585516,3.8826129,193.85,193.83,62.1]
[1761465585718,2.63,193.87,193.83,62.1]
[1761465585916,3.88260458,193.86,193.83,62.1]
[1761465586217,3.88260458,193.85,193.83,62.1]
[1761465586518,2.63,193.87,193.83,62.1]
[1761465586708,3.88193387,193.86,193.83,62.1]
[1761465586909,3.88193387,193.85,193.83,62.1]
[1761465587107,2.63,193.87,193.83,62.1]
[1761465587312,3.88185569,193.86,193.83,62.1]
[1761465587513,3.88185569,193.85,193.83,62.1]
[1761465587812,2.63,193.87,193.83,62.1]
[1761465588013,3.88185566,193.86,193.83,62.1]
[1761465588309,3.88185566,193.85,193.83,62.1]
[1761465588511,2.63,193.87,193.83,62.1]
[1761465588707,3.88177538,193.86,193.83,62.1]
[1761465588908,3.88177538,193.85,193.83,62.1]
[1761465589112,2.63,193.87,193.83,62.1]
[1761465589413,3.88170251,193.86,193.83,62.1]
[1761465589608,3.88170251,193.85,193.83,62.1]
[1761465589909,2.63,193.87,193.83,62.1]
[1761465590105,3.88170251,193.86,193.83,62.1]
[1761465590308,3.88170251,193.85,193.83,62.1]
[1761465590520,2.63,193.87,193.83,62.1]
[1761465590716,3.8813864,193.86,193.83,62.1]
[1761465590912,3.8813864,193.85,193.83,62.1]
[1761465591112,2.63,193.87,193.83,62.1]
[1761465591308,3.88135675,193.86,193.83,62.1]
[1761465591610,3.88135675,193.85,193.83,62.1]
[1761465591818,2.63,193.87,193.83,62.1]
[1761465592031,3.88134542,193.86,193.83,62.1]
[1761465592326,3.88134542,193.85,193.83,62.1]
[1761465592614,2.63,193.87,193.83,62.1]
[1761465592810,3.88128277,193.86,193.83,62.1]
[1761465593005,3.88128277,193.85,193.83,62.1]
[1761465593212,2.63,193.87,193.83,62.1]
[1761465593417,3.88122346,193.86,193.83,62.1]
[1761465593619,3.88122346,193.85,193.83,62.1]
[1761465593912,2.63,193.87,193.83,62.1]
[1761465594119,3.88123159,193.86,193.83,62.1]
[1761465594314,3.88123159,193.85,193.83,62.1]
[1761465594514,2.63,193.87,193.83,62.1]
[1761465594722,3.88120369,193.86,193.83,62.1]
[1761465594920,3.88120369,193.85,193.83,62.1]
[1761465595217,2.63,193.87,193.83,62.1]
[1761465595418,3.88114095,193.86,193.83,62.1]
[1761465595620,3.88114095,193.85,193.83,62.1]
[1761465595819,2.63,193.89,193.83,62.1]
[1761465596120,10.97417242,193.88,193.83,62.1]
[1761465596309,3.88114095,193.87,193.83,62.1]
[1761465596512,3.88114095,193.86,193.83,62.1]
[1761465596710,3.88114095,193.85,193.83,62.1]
[1761465596914,2.63,193.88,193.83,62.1]
[1761465597115,3.88108905,193.87,193.83,62.1]
[1761465597429,3.88108905,193.86,193.83,62.1]
[1761465597724,3.88108905,193.85,193.83,62.1]
[1761465597924,2.63,193.88,193.83,62.1]
[1761465598126,3.88103969,193.87,193.83,62.1]
[1761465598324,3.88103969,193.86,193.83,62.1]
[1761465598525,3.88103969,193.85,193.83,62.1]
[1761465598720,2.63,193.88,193.83,62.1]
[1761465598922,3.88100083,193.87,193.83,62.1]
[1761465599121,2.63,193.88,193.83,62.1]
[1761465599122,3.88100083,193.86,193.83,62.1]
[1761465599323,3.88100083,193.85,193.83,62.1]
[1761465599514,2.63,193.88,193.83,62.1]
[1761465599719,3.88097873,193.87,193.83,62.1]
[1761465599920,3.88097873,193.86,193.83,62.1]
[1761465600228,2.63,193.88,193.83,62.1]
[1761465600434,3.8809536,193.87,193.83,62.1]
[1761465600731,3.8809536,193.86,193.83,62.1]
[1761465601025,3.8809536,193.85,193.83,62.1]
[1761465601226,2.63,193.88,193.83,62.1]
[1761465601428,3.88092974,193.87,193.83,62.1]
[1761465601627,3.88092974,193.86,193.83,62.1]
[1761465601826,3.88092974,193.85,193.83,62.1]
[1761465602027,2.63,193.88,193.83,62.1]
[1761465602326,6.70176743,193.87,193.83,62.1]
[1761465602531,3.88176743,193.86,193.83,62.1]
[1761465602720,3.88176743,193.85,193.83,62.1]
[1761465602925,4.81524258,193.9,193.83,62.1]
[1761465603225,4.81524258,193.96,193.83,62.1]
[1761465603423,8.34206029,193.95,193.83,62.1]
[1761465603628,3.88098906,193.94,193.83,62.1]
[1761465603824,3.88098906,193.93,193.83,62.1]
[1761465604028,3.88098906,193.92,193.83,62.1]
[1761465604224,4.81524258,193.98,193.83,62.1]
[1761465604631,7.63524258,193.98,193.83,62.1]
[1761465604929,2.82,193.96,193.87,4.6415]
[1761465605235,3.87842059,193.95,193.88,62.1]
[1761465605536,3.87842059,193.94,193.88,62.1]
[1761465605729,3.87842059,193.93,193.88,62.1]
[1761465605924,2.82,193.95,193.88,62.1]
[1761465606121,3.87653955,193.94,193.88,62.1]
[1761465606325,2.82,193.95,193.88,62.1]
[1761465606631,3.8750601,193.94,193.88,62.1]
[1761465606828,2.82,193.95,193.88,62.1]
[1761465607231,6.69407749,193.95,193.88,62.1]
[1761465607434,2.82,193.93,193.88,62.1]
[1761465610233,4.64,193.94,193.88,62.1]
[1761465610536,7.3696,193.96,193.88,62.1]
[1761465613934,4.6396,193.96,193.88,62.1]
[1761465614140,2.73,194.06,193.89,15.47]
[1761465614539,2.73,194.06,193.93,4.6403]
[1761465614733,2.73,194.04,193.93,4.6403]
[1761465614933,2.73,194.03,193.93,4.6403]
[1761465619746,2.73,194.03,193.92,53.1]
[1761465621347,2.73,194.02,193.92,53.1]
[1761465642472,2.79,194.01,193.92,53.1]
[1761465644171,3.80054336,194.01,193.92,53.1]
[1761465644477,2.79,194.0,193.92,53.1]
[1761465645879,2.79,194.0,193.91,4.6407]
[1761465647280,2.79,193.99,193.91,4.6407]
[1761465649583,6.59879411,193.99,193.91,4.6407]
[1761465649884,2.79,193.99,193.91,4.6407]
[1761465650882,6.59925221,193.99,193.91,4.6407]
[1761465651085,2.79,193.99,193.91,4.6407]
[1761465652084,6.60028344,193.99,193.91,4.6407]
[1761465652290,2.79,193.99,193.91,4.6407]
[1761465655089,3.81370459,193.98,193.91,4.6407]
[1761465655290,2.79,193.99,193.91,4.6407]
[1761465655492,3.81370145,193.98,193.91,4.6407]
[1761465655691,2.79,193.99,193.91,4.6407]
[1761465655892,4.81524258,194.03,193.91,4.6407]
[1761465655893,3.81370459,193.98,193.91,4.6407]
[1761465656193,2.79,193.98,193.91,4.6407]
[1761465657296,2.79,194.01,193.91,4.6407]
[1761465657488,6.60537715,194.0,193.91,4.6407]
[1761465657793,3.81537715,193.99,193.91,4.6407]
[1761465657989,2.79,194.0,193.91,4.6407]
[1761465658190,3.81556241,193.99,193.91,4.6407]
[1761465658391,2.79,194.0,193.91,4.6407]
[1761465658690,3.81662695,193.99,193.91,4.6407]
[1761465658890,2.79,194.0,193.91,4.6407]
[1761465659189,3.81662538,193.99,193.91,4.6407]
[1761465659388,2.79,194.0,193.91,4.6407]
[1761465659589,3.81667549,193.99,193.91,4.6407]
[1761465659785,2.79,194.0,193.91,4.6407]
[1761465659981,3.81667549,193.99,193.91,4.6407]
[1761465660197,2.79,194.0,193.91,4.6407]
[1761465660694,2.79,194.0,193.92,4.6403]
[1761465663296,4.33750177,194.04,193.93,4.6401]
[1761465663497,6.4179537,194.03,193.93,4.6401]
[1761465663697,3.8179537,194.02,193.93,4.6401]
[1761465663999,3.8179537,194.01,193.93,4.6401]
[1761465664298,2.6,194.03,193.93,4.6401]
[1761465664597,3.81767257,194.02,193.93,4.6401]
[1761465664797,3.81767257,194.01,193.93,4.6401]
[1761465664985,2.6,194.03,193.93,4.6401]
[1761465665186,3.81767257,194.02,193.93,4.6401]
[1761465665386,3.81767257,194.01,193.93,4.6401]
[1761465665589,2.6,194.03,193.93,4.6401]
[1761465665794,3.81726845,194.02,193.93,4.6401]
[1761465665992,3.81726845,194.01,193.93,4.6401]
[1761465666195,2.6,194.03,193.93,4.6401]
[1761465666390,3.81705344,194.02,193.93,4.6401]
[1761465666593,3.81705344,194.01,193.93,4.6401]
[1761465666792,2.6,194.03,193.93,4.6401]
[1761465666995,6.41705344,194.02,193.93,4.6401]
[1761465667196,3.81705344,194.01,193.93,4.6401]
[1761465667398,2.6,194.02,193.93,4.6401]
[1761465667603,3.81689302,194.01,193.93,4.6401]
[1761465667798,2.6,194.02,193.93,4.6401]
[1761465667997,3.81689302,194.01,193.93,4.6401]
[1761465668300,2.6,194.02,193.93,4.6401]
[1761465669301,2.6,194.02,193.91,14.25585245]
[1761465669492,2.86,194.0,193.89,9.61515245]
[1761465669698,2.86,194.0,193.9,62.16]
[1761465670004,2.86,193.98,193.9,62.16]
[1761465672505,2.86,194.01,193.9,66.8009]
[1761465672701,3.82729263,194.0,193.9,66.8009]
[1761465672901,3.82729263,193.99,193.9,66.8009]
[1761465673204,2.86,194.0,193.9,66.8009]
[1761465673401,3.82732182,193.99,193.9,66.8009]
[1761465673603,2.86,194.0,193.9,66.8009]
[1761465673897,3.82732094,193.99,193.9,66.8009]
[1761465674104,2.86,194.0,193.9,66.8009]
[1761465674304,3.82735441,193.99,193.9,66.8009]
[1761465674506,2.86,194.0,193.9,66.8009]
[1761465674705,3.82735441,193.99,193.9,66.8009]
[1761465674898,2.86,194.0,193.9,66.8009]
[1761465675206,3.82735441,193.99,193.9,66.8009]
[1761465675505,2.86,194.0,193.9,66.8009]
[1761465675806,3.82735337,193.99,193.9,66.8009]
[1761465676104,2.86,194.0,193.9,66.8009]
[1761465676308,3.82735331,193.99,193.9,66.8009]
[1761465676607,2.86,194.03,193.92,4.6405]
[1761465676802,6.68788302,194.02,193.92,4.6405]
[1761465677002,3.82788302,194.01,193.92,4.6405]
[1761465677203,2.86,194.02,193.92,4.6405]
[1761465677503,3.82765806,194.01,193.92,4.6405]
[1761465677702,2.86,194.02,193.92,4.6405]
[1761465677902,3.8276583,194.01,193.92,4.6405]
[1761465678108,2.86,194.02,193.92,4.6405]
[1761465678305,6.68745399,194.01,193.92,4.6405]
[1761465678606,2.86,194.01,193.92,4.6405]
[1761465687119,2.86,194.01,193.93,4.6401]
[1761465711032,2.86,194.01,193.93,14.25525245]
[1761465711939,2.86,194.01,193.92,9.61515245]
[1761465712243,2.86,194.01,193.91,14.25585245]
[1761465713647,2.86,194.01,193.92,4.6404]
[1761465717147,2.86,194.01,193.92,14.25555245]
[1761465721156,6.44652681,194.0,193.92,14.25555245]
[1761465721350,2.63,194.0,193.92,14.25555245]
[1761465724450,4.30778824,194.04,193.93,4.6401]
[1761465724654,6.44664053,194.03,193.94,9.61515245]
[1761465724844,6.44664053,194.03,193.9,77.63]
[1761465724845,2.63,194.03,193.95,9.61515245]
[1761465725448,2.63,194.03,193.94,9.61515245]
[1761465726056,2.63,194.03,193.95,4.6396]
[1761465728655,2.63,194.03,193.93,14.25535245]
[1761465728855,4.81522689,194.0,193.85,9.61515245]
[1761465729058,2.73,193.98,193.84,106.06660439]
[1761465729258,2.73,193.96,193.84,106.06660439]
[1761465729457,2.73,193.94,193.84,96.45145194]
[1761465731151,2.73,193.94,193.84,106.06660439]
[1761465731751,2.73,193.94,193.84,96.45145194]
[1761465731960,2.73,193.94,193.85,4.642]
[1761465747668,2.73,193.94,193.83,0.89726566]
[1761465767485,2.61,193.93,193.83,0.89726566]
[1761465768684,3.7892922,193.93,193.83,0.89726566]
[1761465768890,2.61,193.92,193.83,0.89726566]
[1761465781308,3.79877076,193.91,193.83,0.89726566]
[1761465781614,2.61,193.9,193.83,0.89726566]
[1761465782903,2.61,193.9,193.82,62.14]
[1761465783604,3.79743285,193.89,193.82,62.14]
[1761465783804,2.68,193.88,193.82,62.14]
[1761465788509,2.78,193.87,193.82,62.14]
[1761465798123,1.49858877,193.84,193.7,9.61515245]
[1761465798325,2.78,193.82,193.73,1.49858877]
[1761465798525,2.78,193.82,193.73,7.04171852]
[1761465798924,2.78,193.82,193.73,5.54312975]
[1761465800634,2.78,193.82,193.73,0.89802975]
[1761465810037,2.78,193.8,193.73,0.89802975]
[1761465810333,2.78,193.8,193.7,62.24]
[1761465810532,2.78,193.8,193.71,0.89816882]
[1761465829538,2.64,193.79,193.71,0.89816882]
[1761465834856,2.64,193.79,193.7,62.24]
[1761465836254,3.95300883,193.78,193.7,62.24]
[1761465836457,2.64,193.77,193.7,62.24]
[1761465839151,2.64,193.77,193.58,15.47]
[1761465839354,2.64,193.75,193.62,131.33549837]
[1761465839555,2.64,193.78,193.73,2.34358116]
[1761465841648,6.42032344,193.85,193.73,2.34358116]
[1761465841649,2.66,193.81,193.73,2.34358116]
[1761465841845,6.62027121,193.8,193.73,2.34358116]
[1761465842046,2.66,193.8,193.76,2.34358116]
[1761465842245,6.62275968,193.79,193.76,2.34358116]
[1761465842449,2.66,193.79,193.76,2.34358116]
[1761465843252,2.66,193.79,193.75,2.34358116]
[1761465854762,2.62,193.83,193.75,2.34358116]
[1761465854963,3.96787223,193.82,193.75,2.34358116]
[1761465855168,2.62,193.83,193.75,2.34358116]
[1761465855470,6.58742957,193.82,193.75,2.34358116]
[1761465855672,2.62,193.82,193.75,2.34358116]
[1761465858571,2.62,193.82,193.78,2.34358116]
[1761465865775,4.80238971,193.88,193.78,2.34358116]
[1761465865776,6.58103677,193.85,193.78,2.34358116]
[1761465866084,2.62,193.87,193.81,2.34358116]
[1761465866666,2.62,193.87,193.85,1.49795037]
[1761465871071,2.62,193.94,193.85,1.49795037]
[1761465871271,2.62,193.92,193.88,1.49795037]
[1761465871468,2.62,193.91,193.88,1.49795037]
[1761465884495,2.62,193.91,193.81,4.6429]
[1761465884788,2.62,193.91,193.82,1.49795037]
[1761465890981,2.62,193.91,193.81,1.49795037]
[1761465891895,2.62,193.91,193.8,1.49795037]
[1761465893395,2.7,193.9,193.8,1.49795037]
[1761465898498,2.7,193.89,193.8,1.49795037]
[1761465901691,2.7,193.89,193.83,1.49795037]
[1761465911410,2.7,193.89,193.86,1.49795037]
[1761465912700,2.7,193.89,193.79,19.2235]
[1761465912701,2.7,193.89,193.83,1.49795037]
[1761465919905,2.7,193.89,193.77,4.644]
[1761465920114,2.77,193.87,193.81,1.49795037]
[1761465922219,2.77,193.85,193.81,1.49795037]
[1761465928718,2.77,193.85,193.79,2.34113237]
[1761465935623,2.77,193.88,193.79,2.34113237]
[1761465935822,2.77,193.88,193.82,2.34113237]
[1761465937328,2.77,193.88,193.72,183.92061911]
[1761465937329,2.77,193.95,193.74,12.88546458]
[1761465937528,2.77,193.93,193.85,2.34113237]
[1761465937718,2.77,193.91,193.85,2.34113237]
[1761465943928,2.77,193.91,193.82,2.34113237]
[1761465945834,74.7930965,193.97,193.82,2.34113237]
[1761465945835,2.81,193.89,193.82,2.34113237]
[1761465946530,2.81,193.92,193.82,2.34113237]
[1761465946830,2.81,193.9,193.82,2.34113237]
[1761465959039,2.81,193.95,193.85,2.34113237]
[1761465959244,2.81,193.93,193.85,2.34113237]
[1761465959741,2.81,193.93,193.88,2.34113237]
[1761465960830,2.81,193.93,193.83,4.6425]
[1761465961039,2.81,193.93,193.82,48.72113237]
[1761465961237,2.61,193.91,193.82,48.72113237]
[1761465963038,2.61,193.91,193.82,46.38]
[1761465963236,2.61,193.89,193.82,46.38]
[1761465964246,2.61,193.87,193.82,46.38]
[1761465969942,2.61,193.87,193.82,48.72113237]
[1761465970848,11.41923878,193.9,193.82,48.72113237]
[1761465971052,2.88,193.88,193.85,2.34113237]
[1761465971257,2.88,193.91,193.85,2.34113237]
[1761465971447,2.88,193.94,193.89,2.34113237]
[1761465972546,2.88,193.94,193.92,2.34113237]
[1761465973454,2.88,193.96,193.92,2.34113237]
[1761465973640,6.79408733,193.95,193.92,2.34113237]
[1761465973843,2.88,193.95,193.92,2.34113237]
[1761465980256,2.88,193.95,193.88,2.34113237]
[1761465985451,2.88,193.95,193.88,6.98233237]
[1761465988761,2.88,193.95,193.93,1.49668855]
[1761465995665,2.88,193.95,193.9,1.49668855]
[1761465996563,2.88,194.0,193.9,1.49668855]
[1761465996764,2.88,193.99,193.93,1.49668855]
[1761465998076,2.88,193.99,193.82,74.74546458]
[1761465998077,2.88,194.04,193.98,1.49668855]
[1761466001771,2.88,194.04,193.93,4.6401]
[1761466002070,2.88,194.04,193.94,1.49668855]
[1761466003676,2.86,194.03,193.94,1.49668855]
[1761466004366,2.86,194.02,193.94,1.49668855]
[1761466004967,1.49668855,194.02,193.91,1.49668855]
[1761466005178,2.86,194.01,193.91,1.49668855]
[1761466008478,2.86,194.01,193.92,1.5]
[1761466008674,2.86,194.0,193.92,1.5]
[1761466010382,6.74537219,194.0,193.92,1.5]
[1761466010581,2.86,193.99,193.92,1.5]
[1761466011486,2.86,193.98,193.92,1.5]
[1761466012287,2.86,193.98,193.92,3.96]
[1761466014382,2.86,193.97,193.92,3.96]
[1761466015883,2.86,193.96,193.92,3.96]
[1761466019885,2.86,193.94,193.92,3.96]
[1761466021185,2.86,193.94,193.93,1.49668855]
[1761466021702,6.50622058,193.97,193.93,1.49668855]
[1761466021885,2.61,193.97,193.96,1.49668855]
[1761466025895,2.61,193.98,193.93,1.49668855]
[1761466027500,2.61,193.98,193.96,1.49668855]
[1761466027703,6.50799529,194.01,193.96,1.49668855]
[1761466027883,2.61,194.04,193.96,1.49668855]
[1761466028088,6.50838431,194.03,193.96,1.49668855]
[1761466028401,2.61,194.03,193.96,1.49668855]
[1761466033493,2.61,194.03,193.98,1.49668855]
[1761466036498,2.61,194.03,193.96,1.49668855]
[1761466036702,2.74,194.01,193.96,1.49668855]
[1761466036899,2.74,194.01,193.94,1.49668855]
[1761466039407,2.74,194.01,193.95,1.5]
[1761466039603,2.74,193.99,193.95,1.5]
[1761466045207,3.8935737,193.98,193.95,1.5]
[1761466045410,2.74,193.97,193.95,1.5]
[1761466060914,2.75,194.0,193.95,1.5]
[1761466061117,2.75,193.99,193.95,1.5]
[1761466065332,2.75,194.02,193.95,1.5]
[1761466065530,3.90666432,194.01,193.95,1.5]
[1761466065726,3.90666432,194.0,193.95,1.5]
[1761466065921,2.75,194.02,193.95,1.5]
[1761466066127,3.90666132,194.01,193.95,1.5]
[1761466066325,6.65666132,194.0,193.95,1.5]
[1761466066533,2.75,194.0,193.95,1.5]
[1761466067535,2.75,194.0,193.93,4.6402]
[1761466070141,2.75,194.0,193.94,1.5]
[1761466070539,2.75,194.0,193.95,2.46]
[1761466074039,3.90656948,193.99,193.95,2.46]
[1761466074238,2.75,193.98,193.95,2.46]
[1761466079236,4.38749641,194.03,193.95,2.46]
[1761466079538,2.75,194.01,193.95,2.46]
[1761466079737,4.81087262,194.04,193.95,2.46]
[1761466079738,6.65906104,194.0,193.95,2.46]
[1761466079938,3.90906104,193.99,193.95,2.46]
[1761466080140,2.75,193.99,193.95,2.46]
[1761466090546,2.75,193.99,193.96,1.5]
[1761466093434,2.77,194.03,193.96,1.5]
[1761466093638,6.67399411,194.02,193.96,1.5]
[1761466093834,2.77,194.0,193.96,1.5]
[1761466101947,9.19179418,194.05,193.96,1.5]
[1761466101948,2.77,193.98,193.96,1.5]
[1761466102546,2.77,193.96,193.95,2.13810149]
[1761466103850,6.67009324,193.96,193.95,2.13810149]
[1761466107350,2.77,193.96,193.95,2.13810149]
[1761466108750,6.66675242,193.96,193.95,2.13810149]
[1761466109138,2.77,193.95,193.87,62.14]
[1761466110343,2.77,193.93,193.87,62.14]
[1761466112447,3.89057892,193.92,193.87,62.14]
[1761466112655,2.77,193.91,193.87,62.14]
[1761466113455,2.77,193.91,193.85,129.55487897]
[1761466116748,2.77,193.91,193.85,131.05278326]
[1761466117554,2.77,193.91,193.86,2.15]
[1761466120052,2.77,193.91,193.88,1.49790429]
[1761466120257,2.77,193.91,193.89,2.15]
[1761466124651,2.84,193.95,193.89,2.15]
[1761466126457,2.84,193.95,193.92,2.15]
[1761466129263,2.84,193.95,193.86,66.8017]
[1761466129461,2.84,193.95,193.91,2.15]
[1761466143469,2.84,193.95,193.9,1.49790429]
[1761466143870,2.84,193.95,193.9,3.64790429]
[1761466145578,2.84,193.95,193.9,1.49790429]
[1761466146081,2.84,193.95,193.9,3.64790429]
[1761466147284,2.8,193.98,193.94,2.15]
[1761466147487,6.70153722,193.97,193.94,2.15]
[1761466147776,6.70153722,193.96,193.94,2.15]